fUSD/lending_fUSD_20240612
["ID","MTS","AMOUNT","RATE_DAILY","PERIOD"]
[329180812,1718152326054,-859.34,0.00023287,2]
[329180813,1718152326064,-2185.89,0.00023287,2]
[329180814,1718152326077,-1285.65,0.00023287,2]
[329180815,1718152326089,-565.93,0.00023287,2]
[329180816,1718152326101,-637.51,0.00023287,2]
[329180817,1718152326112,-500.0,0.00023287,2]
[329180818,1718152326127,-1027.85,0.00023287,2]
[329180819,1718152326136,-1828.02,0.00023287,2]
[329180820,1718152326146,-1832.91,0.00023287,2]
[329180821,1718152326157,-500.0,0.00023287,2]
[329180822,1718152326168,-879.61,0.00023287,2]
[329180823,1718152326178,-1675.58,0.00023287,2]
[329180824,1718152326189,-843.32,0.00023287,2]
[329180825,1718152326198,-775.96,0.00023287,2]
[329180826,1718152326208,-546.12,0.00023287,2]
[329180827,1718152326219,-2473.16,0.00023287,2]
[329180828,1718152326230,-1644.66,0.00023287,2]
[329180829,1718152326240,-608.83,0.00023287,2]
[329180830,1718152326251,-6166.54,0.00023287,2]
[329180831,1718152326261,-1432.45,0.00023287,2]
[329180832,1718152326271,-11639.91,0.00023287,2]
[329180833,1718152326282,-500.0,0.00023287,2]
[329180834,1718152326293,-684.92,0.00023287,2]
[329180835,1718152326303,-500.0,0.00023287,2]
[329180836,1718152326314,-720.68,0.00023287,2]
[329180837,1718152326325,-836.87,0.00023287,2]
[329180838,1718152326335,-2116.39,0.00023287,2]
[329180839,1718152326345,-2982.93,0.00023287,2]
[329180840,1718152326357,-500.0,0.00023287,2]
[329180841,1718152326368,-6038.81,0.00023287,2]
[329180842,1718152326379,-500.0,0.00023287,2]
[329180843,1718152326390,-2381.43,0.00023287,2]
[329180844,1718152326401,-544.79,0.00023287,2]
[329180845,1718152326411,-3028.7,0.00023287,2]
[329180846,1718152326423,-1373.33,0.00023287,2]
[329180847,1718152326435,-1677.62,0.00023287,2]
[329180848,1718152326445,-1337.01,0.00023287,2]
[329180849,1718152326455,-714.82,0.00023287,2]
[329180850,1718152326465,-359.72744252,0.00023287,2]
[329180851,1718152326476,-673.21,0.00023287,2]
[329180852,1718152326487,-8750.37,0.00023287,2]
[329180853,1718152326498,-799.51,0.00023287,2]
[329180854,1718152326509,-500.0,0.00023287,2]
[329180855,1718152326521,-5029.8,0.00023287,2]
[329180856,1718152326531,-1374.54,0.00023287,2]
[329180857,1718152326542,-14635.7,0.00023287,2]
[329180858,1718152326552,-500.0,0.00023287,2]
[329180859,1718152326563,-500.0,0.00023287,2]
[329180860,1718152326573,-55467.75,0.00023287,2]
[329180861,1718152326583,-1639.97,0.00023287,2]
[329180862,1718152326594,-1476.61,0.00023287,2]
[329180863,1718152326605,-500.0,0.00023287,2]
[329180864,1718152326615,-1694.28,0.00023287,2]
[329180865,1718152326626,-611.49,0.00023287,2]
[329180866,1718152326637,-8487.8,0.00023287,2]
[329180867,1718152326648,-500.0,0.00023287,2]
[329180868,1718152326658,-500.0,0.00023287,2]
[329180869,1718152326668,-4233.25,0.00023287,2]
[329180870,1718152326678,-31639.75,0.00023287,2]
[329180871,1718152326689,-1040.34,0.00023287,2]
[329180872,1718152326700,-3757.38,0.00023287,2]
[329180873,1718152326710,-500.0,0.00023287,2]
[329180874,1718152326720,-500.0,0.00023287,2]
[329180875,1718152326730,-1454.99,0.00023287,2]
[329180876,1718152326740,-859.52,0.00023287,2]
[329180877,1718152326750,-2491.31,0.00023287,2]
[329180878,1718152326760,-2280.28,0.00023287,2]
[329180879,1718152326770,-667.99,0.00023287,2]
[329180880,1718152326780,-500.0,0.00023287,2]
[329180881,1718152326790,-948.31,0.00023287,2]
[329180882,1718152326799,-3248.8,0.00023287,2]
[329180883,1718152326809,-1784.52,0.00023287,2]
[329180884,1718152326819,-2626.46,0.00023287,2]
[329180885,1718152326829,-500.0,0.00023287,2]
[329180886,1718152326839,-1004.2,0.00023287,2]
[329180887,1718152326849,-1145.88,0.00023287,2]
[329180888,1718152326858,-1408.1,0.00023287,2]
[329180889,1718152326868,-2273.45,0.00023287,2]
[329180890,1718152326877,-500.0,0.00023287,2]
[329180891,1718152326888,-1209.21,0.00023287,2]
[329180892,1718152326897,-930.43,0.00023287,2]
[329180893,1718152326908,-788.93,0.00023287,2]
[329180894,1718152326922,-1170.24,0.00023287,2]
[329180895,1718152326939,-1149.05,0.00023287,2]
[329180896,1718152326949,-13437.77,0.00023287,2]
[329180897,1718152326960,-3818.53,0.00023287,2]
[329180898,1718152326970,-3130.09,0.00023287,2]
[329180899,1718152326981,-1310.08,0.00023287,2]
[329180900,1718152326992,-937.79,0.00023287,2]
[329180901,1718152327002,-1636.15,0.00023287,2]
[329180902,1718152327013,-4252.32,0.00023287,2]
[329180903,1718152327023,-2992.8,0.00023287,2]
[329180904,1718152327034,-500.0,0.00023287,2]
[329180905,1718152327044,-822.74,0.00023287,2]
[329180906,1718152327055,-1159.58,0.00023287,2]
[329180907,1718152327065,-2563.57,0.00023287,2]
[329180908,1718152327076,-500.0,0.00023287,2]
[329180909,1718152327087,-15717.99,0.00023287,2]
[329180910,1718152327098,-500.0,0.00023287,2]
[329180911,1718152327109,-2005.55,0.00023287,2]
[329180912,1718152327123,-6296.83,0.00023287,2]
[329180913,1718152327133,-3223.86,0.00023287,2]
[329180914,1718152327144,-693.01,0.00023287,2]
[329180915,1718152327154,-6945.2,0.00023287,2]
[329180916,1718152327165,-814.28,0.00023287,2]
[329180917,1718152327176,-508.33,0.00023287,2]
[329180918,1718152327186,-500.0,0.00023287,2]
[329180919,1718152327197,-1572.98,0.00023287,2]
[329180920,1718152327207,-6193.09,0.00023287,2]
[329180921,1718152327217,-601.01,0.00023287,2]
[329180922,1718152327228,-500.0,0.00023287,2]
[329180923,1718152327238,-4096.16,0.00023287,2]
[329180924,1718152327248,-4787.7,0.00023287,2]
[329180925,1718152327259,-772.43,0.00023287,2]
[329180926,1718152327269,-1791.65,0.00023287,2]
[329180927,1718152327280,-7973.12,0.00023287,2]
[329180928,1718152327290,-500.0,0.00023287,2]
[329180929,1718152327301,-5053.24,0.00023287,2]
[329180930,1718152327311,-5354.26,0.00023287,2]
[329180931,1718152327322,-3948.83,0.00023287,2]
[329180932,1718152327333,-553.84,0.00023287,2]
[329180933,1718152327344,-1340.43,0.00023287,2]
[329180934,1718152327355,-709.59,0.00023287,2]
[329180935,1718152327366,-2722.79,0.00023287,2]
[329180936,1718152327376,-500.0,0.00023287,2]
[329180937,1718152327386,-3052.41,0.00023287,2]
[329180938,1718152327397,-553.91,0.00023287,2]
[329180939,1718152327407,-1947.62,0.00023287,2]
[329180940,1718152327418,-2248.59,0.00023287,2]
[329180941,1718152327429,-1267.75,0.00023287,2]
[329180942,1718152327439,-500.0,0.00023287,2]
[329180943,1718152327450,-21764.24,0.00023287,2]
[329180944,1718152327461,-664.97,0.00023287,2]
[329180945,1718152327470,-3643.8,0.00023287,2]
[329180946,1718152327481,-933.23,0.00023287,2]
[329180947,1718152327490,-993.14,0.00023287,2]
[329180948,1718152327501,-2014.17,0.00023287,2]
[329180949,1718152327511,-3779.59,0.00023287,2]
[329180950,1718152327521,-2124.27,0.00023287,2]
[329180951,1718152327531,-500.0,0.00023287,2]
[329180952,1718152327540,-1155.31,0.00023287,2]
[329180953,1718152327551,-1829.75,0.00023287,2]
[329180954,1718152327561,-2069.74,0.00023287,2]
[329180955,1718152327571,-7244.58,0.00023287,2]
[329180956,1718152327582,-535.12,0.00023287,2]
[329180957,1718152327592,-966.69,0.00023287,2]
[329180958,1718152327602,-501.41,0.00023287,2]
[329180959,1718152327612,-2887.58,0.00023287,2]
[329180960,1718152327623,-573.32,0.00023287,2]
[329180961,1718152327633,-887.04,0.00023287,2]
[329180962,1718152327644,-798.17,0.00023287,2]
[329180963,1718152327654,-1475.27,0.00023287,2]
[329180964,1718152327664,-500.0,0.00023287,2]
[329180965,1718152327675,-5774.73,0.00023287,2]
[329180966,1718152327687,-2320.17,0.00023287,2]
[329180967,1718152327697,-4440.03,0.00023287,2]
[329180968,1718152327708,-1224.67,0.00023287,2]
[329180969,1718152327718,-2701.18,0.00023287,2]
[329180970,1718152327728,-500.0,0.00023287,2]
[329180971,1718152327739,-3233.51,0.00023287,2]
[329180972,1718152327750,-530.0455775,0.00023287,2]
[329180973,1718152327761,-500.0,0.00023287,2]
[329180974,1718152327771,-4631.33,0.00023287,2]
[329180975,1718152327781,-10039.9,0.00023287,2]
[329180976,1718152327791,-5258.17,0.00023287,2]
[329180977,1718152327802,-1536.62,0.00023287,2]
[329180978,1718152327812,-3703.49,0.00023287,2]
[329180979,1718152327823,-664.9,0.00023287,2]
[329180980,1718152327834,-5740.59,0.00023287,2]
[329180981,1718152327844,-679.79,0.00023287,2]
[329180982,1718152327854,-500.0,0.00023287,2]
[329180983,1718152327865,-527.5,0.00023287,2]
[329180984,1718152327877,-1010.03,0.00023287,2]
[329180985,1718152327887,-4174.68,0.00023287,2]
[329180986,1718152327899,-1523.49,0.00023287,2]
[329180987,1718152327909,-826.15,0.00023287,2]
[329180988,1718152327924,-3077.97,0.00023287,2]
[329180989,1718152327937,-500.0,0.00023287,2]
[329180990,1718152327949,-500.0,0.00023287,2]
[329180991,1718152327960,-1737.39,0.00023287,2]
[329180992,1718152327970,-3723.53,0.00023287,2]
[329180993,1718152327981,-1279.11,0.00023287,2]
[329180994,1718152327992,-921.67,0.00023287,2]
[329180995,1718152328002,-3554.93,0.00023287,2]
[329180996,1718152328012,-8519.11779506,0.00023287,2]
[329180997,1718152329783,-871.48241615,0.00018912,2]
[329180998,1718152329796,-958.51758385,0.00018912,2]
[329180999,1718152329807,-1830.0,0.00021912,2]
[329181000,1718152329819,-151.0,0.00021915,2]
[329181001,1718152329831,-1374.24,0.00021917,2]
[329181002,1718152329842,-151.0,0.00021917,2]
[329181003,1718152329853,-151.0,0.00021917,2]
[329181004,1718152329864,-151.0,0.00021917,2]
[329181005,1718152329875,-151.0,0.00021917,2]
[329181006,1718152329887,-1374.24,0.00022054,2]
[329181007,1718152329898,-1374.24,0.00022191,2]
[329181008,1718152329910,-1374.24,0.00022328,2]
[329181009,1718152329924,-1374.24,0.00022465,2]
[329181010,1718152330186,-2116.3,0.00022602,2]
[329181011,1718152330197,-933.43209121,0.00022602,2]
[329181012,1718152330211,-440.80790879,0.00022602,2]
[329181013,1718152330222,-237.41359595,0.00022739,2]
[329181014,1718152330262,-566.87665035,0.00022739,2]
[329181015,1718152330317,-460.7597537,0.00022739,2]
[329181016,1718152330328,-500.0,0.00022739,2]
[329181017,1718152330339,-500.0,0.00022739,2]
[329181018,1718152330352,-2116.3,0.00022739,2]
[329181019,1718152330362,-1374.24,0.00022739,2]
[329181020,1718152330376,-1265.05,0.00022876,2]
[329181021,1718152330388,-500.0,0.00022876,2]
[329181022,1718152330399,-500.0,0.00022876,2]
[329181023,1718152330410,-2116.3,0.00022876,2]
[329181024,1718152330421,-1374.24,0.00022876,2]
[329181025,1718152330432,-1265.05,0.00023013,2]
[329181026,1718152330446,-500.0,0.00023013,2]
[329181027,1718152330457,-500.0,0.00023013,2]
[329181028,1718152330470,-2116.3,0.00023013,2]
[329181029,1718152330482,-1374.24,0.00023013,2]
[329181030,1718152330492,-383.03280681,0.0002305,2]
[329181031,1718152330504,-1265.05,0.0002315,2]
[329181032,1718152330515,-500.0,0.0002315,2]
[329181033,1718152330526,-2116.3,0.0002315,2]
[329181034,1718152330536,-500.0,0.0002315,2]
[329181035,1718152330547,-1374.24,0.0002315,2]
[329181036,1718152330557,-5373.74220494,0.00023287,2]
[329181037,1718152330569,-1815.54,0.00023287,2]
[329181038,1718152330580,-3828.74,0.00023287,2]
[329181039,1718152330591,-500.0,0.00023287,2]
[329181040,1718152330602,-1478.12,0.00023287,2]
[329181041,1718152330614,-3873.2,0.00023287,2]
[329181042,1718152330625,-1688.75,0.00023287,2]
[329181043,1718152330636,-1745.11,0.00023287,2]
[329181044,1718152330647,-1169.97,0.00023287,2]
[329181045,1718152330658,-2826.64,0.00023287,2]
[329181046,1718152330670,-2660.92,0.00023287,2]
[329181047,1718152330682,-1499.27,0.00023287,2]
[329181048,1718152330696,-585.03,0.00023287,2]
[329181049,1718152330708,-553.25,0.00023287,2]
[329181050,1718152330720,-4162.53,0.00023287,2]
[329181051,1718152330733,-500.0,0.00023287,2]
[329181052,1718152330744,-500.0,0.00023287,2]
[329181053,1718152330757,-3311.26,0.00023287,2]
[329181054,1718152330769,-9068.66,0.00023287,2]
[329181055,1718152330782,-5034.1,0.00023287,2]
[329181056,1718152330793,-814.67,0.00023287,2]
[329181057,1718152330805,-1677.98,0.00023287,2]
[329181058,1718152330817,-4308.06,0.00023287,2]
[329181059,1718152330828,-1697.49,0.00023287,2]
[329181060,1718152330838,-500.0,0.00023287,2]
[329181061,1718152330848,-561.99,0.00023287,2]
[329181062,1718152330860,-500.0,0.00023287,2]
[329181063,1718152330872,-1323.25,0.00023287,2]
[329181064,1718152330883,-2144.81,0.00023287,2]
[329181065,1718152330894,-3545.84,0.00023287,2]
[329181066,1718152330905,-1141.61,0.00023287,2]
[329181067,1718152330916,-1853.92,0.00023287,2]
[329181068,1718152330940,-990.08,0.00023287,2]
[329181069,1718152330952,-3158.79,0.00023287,2]
[329181070,1718152330963,-3056.61,0.00023287,2]
[329181071,1718152330974,-13300.03,0.00023287,2]
[329181072,1718152330986,-4887.15,0.00023287,2]
[329181073,1718152330996,-1422.63,0.00023287,2]
[329181074,1718152331007,-3636.03,0.00023287,2]
[329181075,1718152331018,-521.15,0.00023287,2]
[329181076,1718152331029,-1437.79,0.00023287,2]
[329181077,1718152331040,-1459.51,0.00023287,2]
[329181078,1718152331051,-500.0,0.00023287,2]
[329181079,1718152331061,-2751.22,0.00023287,2]
[329181080,1718152331072,-500.0,0.00023287,2]
[329181081,1718152331083,-593.82,0.00023287,2]
[329181082,1718152331094,-1998.63,0.00023287,2]
[329181083,1718152331105,-919.64,0.00023287,2]
[329181084,1718152331117,-938.25,0.00023287,2]
[329181085,1718152331131,-1206.33,0.00023287,2]
[329181086,1718152331142,-653.38,0.00023287,2]
[329181087,1718152331152,-500.0,0.00023287,2]
[329181088,1718152331163,-4598.01,0.00023287,2]
[329181089,1718152331174,-1110.54,0.00023287,2]
[329181090,1718152331185,-2178.93,0.00023287,2]
[329181091,1718152331199,-500.0,0.00023287,2]
[329181092,1718152331210,-396.56263503,0.00023287,2]
[329181093,1718152331221,-3919.34,0.00023287,2]
[329181094,1718152331232,-500.0,0.00023287,2]
[329181095,1718152331243,-2168.86,0.00023287,2]
[329181096,1718152331254,-988.74,0.00023287,2]
[329181097,1718152331265,-1758.54,0.00023287,2]
[329181098,1718152331277,-1057.94,0.00023287,2]
[329181099,1718152331288,-2592.38,0.00023287,2]
[329181100,1718152331298,-1265.05,0.00023287,2]
[329181101,1718152331309,-500.0,0.00023287,2]
[329181102,1718152331319,-2116.3,0.00023287,2]
[329181103,1718152331329,-599.47594215,0.00023287,2]
[329181104,1718152331340,-1374.24,0.00023287,2]
[329181105,1718152331350,-380.71,0.00023288,2]
[329181106,1718152331361,-379.97,0.00023288,2]
[329181107,1718152331372,-380.02,0.00023288,2]
[329181108,1718152331383,-2100.0,0.0002329,2]
[329181109,1718152331394,-300.0,0.0002329,2]
[329181110,1718152331405,-937.46,0.000233,6]
[329181111,1718152331416,-1500.0,0.0002337,2]
[329181112,1718152331427,-1500.0,0.00023387,2]
[329181113,1718152331439,-1500.0,0.00023397,2]
[329181114,1718152331450,-150.0,0.00023407,7]
[329181115,1718152331461,-2577.3087613,0.00023408,2]
[329181116,1718152331472,-5776.789086,0.00023408,2]
[329181117,1718152331483,-82908.9693702,0.00023408,2]
[329181118,1718152331495,-651.1557017,0.00023408,2]
[329181119,1718152331505,-7954.7158994,0.00023408,2]
[329181120,1718152331517,-631.65,0.00023424,2]
[329181121,1718152331528,-500.0,0.00023424,2]
[329181122,1718152331540,-500.0,0.00023424,2]
[329181123,1718152331551,-250.0,0.00023424,2]
[329181124,1718152331563,-500.0,0.00023424,2]
[329181125,1718152331578,-500.0,0.00023424,2]
[329181126,1718152331589,-500.0,0.00023424,2]
[329181127,1718152331600,-500.0,0.00023424,2]
[329181128,1718152331611,-1099.52,0.00023424,2]
[329181129,1718152331622,-500.0,0.00023424,2]
[329181130,1718152331633,-219.98721573,0.00023424,2]
[329181131,1718152331644,-1325.77,0.00023424,2]
[329181132,1718152331657,-500.0,0.00023424,2]
[329181133,1718152331667,-543.55,0.00023424,2]
[329181134,1718152331678,-500.0,0.00023424,2]
[329181135,1718152331689,-810.56,0.00023424,2]
[329181136,1718152331701,-500.0,0.00023424,2]
[329181137,1718152331711,-500.0,0.00023424,2]
[329181138,1718152331721,-563.6,0.00023424,2]
[329181139,1718152331732,-604.04,0.00023424,2]
[329181140,1718152331743,-236.67338559,0.00023424,2]
[329181141,1718152331753,-711.93,0.00023424,2]
[329181142,1718152331764,-555.37,0.00023424,2]
[329181143,1718152331775,-500.0,0.00023424,2]
[329181144,1718152331786,-775.81,0.00023424,2]
[329181145,1718152331797,-500.0,0.00023424,2]
[329181146,1718152331809,-500.0,0.00023424,2]
[329181147,1718152331820,-748.54,0.00023424,2]
[329181148,1718152331830,-750.16,0.00023424,2]
[329181149,1718152331841,-500.0,0.00023424,2]
[329181150,1718152331852,-500.0,0.00023424,2]
[329181151,1718152331863,-500.0,0.00023424,2]
[329181152,1718152331873,-500.0,0.00023424,2]
[329181153,1718152331885,-500.0,0.00023424,2]
[329181154,1718152331895,-500.0,0.00023424,2]
[329181155,1718152331907,-500.0,0.00023424,2]
[329181156,1718152331919,-500.0,0.00023424,2]
[329181157,1718152331958,-789.95,0.00023424,2]
[329181158,1718152331970,-500.0,0.00023424,2]
[329181159,1718152331982,-500.0,0.00023424,2]
[329181160,1718152331994,-966.66,0.00023424,2]
[329181161,1718152332008,-701.89,0.00023424,2]
[329181162,1718152332020,-500.0,0.00023424,2]
[329181163,1718152332032,-433.83024134,0.00023424,2]
[329181164,1718152332045,-529.44,0.00023424,2]
[329181165,1718152332056,-727.38,0.00023424,2]
[329181166,1718152332070,-591.24,0.00023424,2]
[329181167,1718152332082,-538.09,0.00023424,2]
[329181168,1718152332094,-200.0,0.00023424,2]
[329181169,1718152332108,-500.0,0.00023424,2]
[329181170,1718152332125,-729.66,0.00023424,2]
[329181171,1718152332139,-670.93,0.00023424,2]
[329181172,1718152332153,-500.0,0.00023424,2]
[329181173,1718152332168,-523.1,0.00023424,2]
[329181174,1718152332180,-988.71,0.00023424,2]
[329181175,1718152332195,-500.0,0.00023424,2]
[329181176,1718152332206,-500.0,0.00023424,2]
[329181177,1718152332218,-530.44,0.00023424,2]
[329181178,1718152332229,-595.33,0.00023424,2]
[329181179,1718152332240,-840.47,0.00023424,2]
[329181180,1718152332252,-1941.81,0.00023424,2]
[329181181,1718152332267,-500.0,0.00023424,2]
[329181182,1718152332277,-561.48,0.00023424,2]
[329181183,1718152332288,-500.0,0.00023424,2]
[329181184,1718152332299,-800.04,0.00023424,2]
[329181185,1718152332309,-1283.53,0.00023424,2]
[329181186,1718152332325,-1896.67,0.00023424,2]
[329181187,1718152332338,-500.0,0.00023424,2]
[329181188,1718152332349,-518.99,0.00023424,2]
[329181189,1718152332360,-500.0,0.00023424,2]
[329181190,1718152332373,-518.56,0.00023424,2]
[329181191,1718152332388,-1025.14,0.00023424,2]
[329181192,1718152332401,-819.72,0.00023424,2]
[329181193,1718152332414,-1865.88,0.00023424,2]
[329181194,1718152332426,-392.2762327,0.00023424,2]
[329181195,1718152332440,-651.19,0.00023424,2]
[329181196,1718152332455,-826.56,0.00023424,2]
[329181197,1718152332467,-500.0,0.00023424,2]
[329181198,1718152332480,-1601.82,0.00023424,2]
[329181199,1718152332493,-1153.34,0.00023424,2]
[329181200,1718152332506,-544.75,0.00023424,2]
[329181201,1718152332518,-738.52,0.00023424,2]
[329181202,1718152332532,-1568.24,0.00023424,2]
[329181203,1718152332545,-840.37,0.00023424,2]
[329181204,1718152332557,-500.0,0.00023424,2]
[329181205,1718152332570,-729.39,0.00023424,2]
[329181206,1718152332583,-615.88,0.00023424,2]
[329181207,1718152332596,-540.87,0.00023424,2]
[329181208,1718152332608,-1809.39,0.00023424,2]
[329181209,1718152332621,-1076.6,0.00023424,2]
[329181210,1718152332634,-816.28,0.00023424,2]
[329181211,1718152332646,-504.47,0.00023424,2]
[329181212,1718152332659,-500.0,0.00023424,2]
[329181213,1718152332670,-500.0,0.00023424,2]
[329181214,1718152332682,-798.81,0.00023424,2]
[329181215,1718152332695,-512.35,0.00023424,2]
[329181216,1718152332707,-703.67,0.00023424,2]
[329181217,1718152332718,-661.03,0.00023424,2]
[329181218,1718152332730,-500.0,0.00023424,2]
[329181219,1718152332744,-1005.72,0.00023424,2]
[329181220,1718152332756,-500.0,0.00023424,2]
[329181221,1718152332769,-1340.89,0.00023424,2]
[329181222,1718152332780,-500.0,0.00023424,2]
[329181223,1718152332792,-2099.17,0.00023424,2]
[329181224,1718152332803,-610.2,0.00023424,2]
[329181225,1718152332815,-783.34,0.00023424,2]
[329181226,1718152332826,-1983.47,0.00023424,2]
[329181227,1718152332838,-1398.35,0.00023424,2]
[329181228,1718152332849,-606.83,0.00023424,2]
[329181229,1718152332861,-621.86,0.00023424,2]
[329181230,1718152332873,-504.13,0.00023424,2]
[329181231,1718152332885,-783.93,0.00023424,2]
[329181232,1718152332896,-1012.19,0.00023424,2]
[329181233,1718152332907,-500.0,0.00023424,2]
[329181234,1718152332917,-1202.81,0.00023424,2]
[329181235,1718152332941,-1163.8,0.00023424,2]
[329181236,1718152332952,-907.37,0.00023424,2]
[329181237,1718152332964,-606.13,0.00023424,2]
[329181238,1718152332975,-565.33,0.00023424,2]
[329181239,1718152332986,-984.93,0.00023424,2]
[329181240,1718152332997,-1994.75,0.00023424,2]
[329181241,1718152333009,-500.0,0.00023424,2]
[329181242,1718152333020,-1645.17,0.00023424,2]
[329181243,1718152333030,-771.29,0.00023424,2]
[329181244,1718152333041,-590.08,0.00023424,2]
[329181245,1718152333051,-1133.5,0.00023424,2]
[329181246,1718152333061,-500.0,0.00023424,2]
[329181247,1718152333073,-500.0,0.00023424,2]
[329181248,1718152333083,-500.0,0.00023424,2]
[329181249,1718152333095,-968.94,0.00023424,2]
[329181250,1718152333106,-1789.81,0.00023424,2]
[329181251,1718152333117,-500.0,0.00023424,2]
[329181252,1718152333131,-1439.21,0.00023424,2]
[329181253,1718152333141,-500.0,0.00023424,2]
[329181254,1718152333152,-500.0,0.00023424,2]
[329181255,1718152333163,-500.0,0.00023424,2]
[329181256,1718152333174,-529.89,0.00023424,2]
[329181257,1718152333185,-1448.71,0.00023424,2]
[329181258,1718152333197,-500.0,0.00023424,2]
[329181259,1718152333208,-1812.13,0.00023424,2]
[329181260,1718152333218,-514.1,0.00023424,2]
[329181261,1718152333229,-534.56,0.00023424,2]
[329181262,1718152333241,-500.0,0.00023424,2]
[329181263,1718152333251,-1485.3,0.00023424,2]
[329181264,1718152333262,-614.92,0.00023424,2]
[329181265,1718152333273,-766.83,0.00023424,2]
[329181266,1718152333284,-633.23,0.00023424,2]
[329181267,1718152333294,-700.18,0.00023424,2]
[329181268,1718152333305,-916.34,0.00023424,2]
[329181269,1718152333316,-500.0,0.00023424,2]
[329181270,1718152333326,-627.02,0.00023424,2]
[329181271,1718152333337,-500.0,0.00023424,2]
[329181272,1718152333348,-500.0,0.00023424,2]
[329181273,1718152333359,-583.90223804,0.00023424,2]
[329181274,1718152333370,-500.0,0.00023424,2]
[329181275,1718152333381,-500.0,0.00023424,2]
[329181276,1718152333392,-604.68,0.00023424,2]
[329181277,1718152333403,-517.38,0.00023424,2]
[329181278,1718152333414,-903.25,0.00023424,2]
[329181279,1718152333425,-500.0,0.00023424,2]
[329181280,1718152333436,-1616.45,0.00023424,2]
[329181281,1718152333448,-1465.81,0.00023424,2]
[329181282,1718152333459,-500.0,0.00023424,2]
[329181283,1718152333470,-1848.49,0.00023424,2]
[329181284,1718152333481,-500.0,0.00023424,2]
[329181285,1718152333492,-672.78,0.00023424,2]
[329181286,1718152333504,-742.65,0.00023424,2]
[329181287,1718152333514,-1031.5,0.00023424,2]
[329181288,1718152333526,-405.62077069,0.00023424,2]
[329181289,1718152333538,-500.0,0.00023424,2]
[329181290,1718152333549,-945.42,0.00023424,2]
[329181291,1718152333561,-807.6,0.00023424,2]
[329181292,1718152333571,-521.83,0.00023424,2]
[329181293,1718152333583,-1377.76,0.00023424,2]
[329181294,1718152333594,-975.07,0.00023424,2]
[329181295,1718152333605,-1135.56,0.00023424,2]
[329181296,1718152333615,-504.6,0.00023424,2]
[329181297,1718152333626,-500.0,0.00023424,2]
[329181298,1718152333638,-735.45,0.00023424,2]
[329181299,1718152333649,-1889.55,0.00023424,2]
[329181300,1718152333659,-2234.48,0.00023424,2]
[329181301,1718152333670,-500.0,0.00023424,2]
[329181302,1718152333681,-500.0,0.00023424,2]
[329181303,1718152333693,-669.88,0.00023424,2]
[329181304,1718152333703,-902.77,0.00023424,2]
[329181305,1718152333713,-1437.12,0.00023424,2]
[329181306,1718152333726,-872.07,0.00023424,2]
[329181307,1718152333737,-832.07,0.00023424,2]
[329181308,1718152333748,-595.17,0.00023424,2]
[329181309,1718152333759,-506.33,0.00023424,2]
[329181310,1718152333771,-678.38,0.00023424,2]
[329181311,1718152333781,-500.0,0.00023424,2]